[Event "Late-Titled-Tuesday-Blitz-January-16-2024"]
[Site "Chess.com"]
[Date "2024.01.16"]
[Round "1"]
[White "Viktor_Poddubnyi"]
[Black "GulamaliRises"]
[Result "0-1"]
[WhiteElo "2263"]
[BlackElo "2613"]
[TimeControl "180+1"]
[EndTime "14:07:45 PST"]
[Termination "GulamaliRises won on time"]

1. e4 {[%clk 0:02:59.3]} 1... c5 {[%clk 0:02:57.1]} 2. Nf3 {[%clk 0:02:58.9]}
2... e6 {[%clk 0:02:56.8]} 3. g3 {[%clk 0:02:58.5]} 3... b6 {[%clk 0:02:53.5]}
4. Bg2 {[%clk 0:02:57.1]} 4... Bb7 {[%clk 0:02:53.6]} 5. d3 {[%clk 0:02:56.7]}
5... g6 {[%clk 0:02:49.5]} 6. O-O {[%clk 0:02:55.9]} 6... Bg7 {[%clk 0:02:50]}
7. Re1 {[%clk 0:02:52.6]} 7... d6 {[%clk 0:02:50]} 8. d4 {[%clk 0:02:45.2]} 8...
cxd4 {[%clk 0:02:42.4]} 9. Nxd4 {[%clk 0:02:43.5]} 9... a6 {[%clk 0:02:43]} 10.
c4 {[%clk 0:02:42.3]} 10... Ne7 {[%clk 0:02:42.7]} 11. Nc3 {[%clk 0:02:41.9]}
11... O-O {[%clk 0:02:41.2]} 12. Be3 {[%clk 0:02:41.6]} 12... Nd7 {[%clk
0:02:41.4]} 13. Rc1 {[%clk 0:02:39.9]} 13... Rc8 {[%clk 0:02:41.6]} 14. b3
{[%clk 0:02:38.4]} 14... Qc7 {[%clk 0:02:42]} 15. Qd2 {[%clk 0:02:30.3]} 15...
Qb8 {[%clk 0:02:41.9]} 16. Red1 {[%clk 0:02:22.7]} 16... Rfd8 {[%clk 0:02:41.6]}
17. Nde2 {[%clk 0:02:15.5]} 17... d5 {[%clk 0:01:54.3]} 18. exd5 {[%clk
0:02:06.7]} 18... exd5 {[%clk 0:01:45.4]} 19. Nxd5 {[%clk 0:02:05.2]} 19... Nxd5
{[%clk 0:01:42.7]} 20. cxd5 {[%clk 0:01:44.3]} 20... Nc5 {[%clk 0:01:34.5]} 21.
Bf4 {[%clk 0:01:03.6]} 21... Qa8 {[%clk 0:01:30.5]} 22. Nc3 {[%clk 0:00:53.7]}
22... Rd7 {[%clk 0:01:14.5]} 23. Bh3 {[%clk 0:00:39]} 23... f5 {[%clk
0:01:14.6]} 24. d6 {[%clk 0:00:36.5]} 24... Bf3 {[%clk 0:01:12.6]} 25. Re1
{[%clk 0:00:27]} 25... Rcd8 {[%clk 0:01:01]} 26. Na4 {[%clk 0:00:21.2]} 26...
Nxa4 {[%clk 0:00:31.5]} 27. bxa4 {[%clk 0:00:22.1]} 27... Qd5 {[%clk 0:00:32.1]}
28. Qb4 {[%clk 0:00:16.1]} 28... h6 {[%clk 0:00:27.7]} 29. Bf1 {[%clk
0:00:16.2]} 29... Qb7 {[%clk 0:00:18.3]} 30. Re7 {[%clk 0:00:15]} 30... g5
{[%clk 0:00:16.7]} 31. Rxd7 {[%clk 0:00:12.9]} 31... Qxd7 {[%clk 0:00:17.5]} 32.
Qb3+ {[%clk 0:00:12.2]} 32... Kh7 {[%clk 0:00:17.6]} 33. Qxf3 {[%clk 0:00:12.3]}
33... gxf4 {[%clk 0:00:18.3]} 34. Qxf4 {[%clk 0:00:11.9]} 34... Qxd6 {[%clk
0:00:18.4]} 35. Qxf5+ {[%clk 0:00:12]} 35... Kh8 {[%clk 0:00:18.9]} 36. Re1
{[%clk 0:00:10.5]} 36... Rf8 {[%clk 0:00:18.2]} 37. Qe4 {[%clk 0:00:07.7]} 37...
Bd4 {[%clk 0:00:17.7]} 38. Re2 {[%clk 0:00:05.7]} 38... Qf6 {[%clk 0:00:17.9]}
39. Qb7 {[%clk 0:00:03.2]} 39... Bxf2+ {[%clk 0:00:16.2]} 40. Kh1 {[%clk
0:00:03.7]} 40... Bxg3 {[%clk 0:00:13.3]} 41. Bg2 {[%clk 0:00:02.1]} 41... Qa1+
{[%clk 0:00:11.2]} 0-1

[Event "Late-Titled-Tuesday-Blitz-January-16-2024"]
[Site "Chess.com"]
[Date "2024.01.16"]
[Round "1"]
[White "dmitrijiIM"]
[Black "Atousa"]
[Result "1-0"]
[WhiteElo "2888"]
[BlackElo "2477"]
[TimeControl "180+1"]
[EndTime "14:07:46 PST"]
[Termination "dmitrijiIM won on time"]

1. d4 {[%clk 0:02:58.8]} 1... Nf6 {[%clk 0:02:53.5]} 2. c4 {[%clk 0:02:57.6]}
2... e6 {[%clk 0:02:52.1]} 3. Nc3 {[%clk 0:02:57.9]} 3... Bb4 {[%clk 0:02:48.8]}
4. e3 {[%clk 0:02:58.1]} 4... O-O {[%clk 0:02:39.1]} 5. Bd2 {[%clk 0:02:57.9]}
5... c5 {[%clk 0:02:36.3]} 6. a3 {[%clk 0:02:57.5]} 6... Bxc3 {[%clk 0:02:35.9]}
7. Bxc3 {[%clk 0:02:58.4]} 7... Ne4 {[%clk 0:02:36.4]} 8. Ne2 {[%clk 0:02:58.6]}
8... b6 {[%clk 0:02:35.3]} 9. d5 {[%clk 0:02:57.4]} 9... Ba6 {[%clk 0:02:34.6]}
10. f3 {[%clk 0:02:57.7]} 10... Nxc3 {[%clk 0:02:33.8]} 11. Nxc3 {[%clk
0:02:58.6]} 11... exd5 {[%clk 0:02:33.5]} 12. Qxd5 {[%clk 0:02:52.6]} 12... Nc6
{[%clk 0:02:31]} 13. O-O-O {[%clk 0:02:41.7]} 13... Qe7 {[%clk 0:02:28.7]} 14.
Re1 {[%clk 0:02:23.3]} 14... Qe6 {[%clk 0:02:22.4]} 15. b3 {[%clk 0:02:03.8]}
15... Rfd8 {[%clk 0:02:07.7]} 16. Bd3 {[%clk 0:01:59.4]} 16... Ne7 {[%clk
0:02:04.3]} 17. Qe4 {[%clk 0:01:53.1]} 17... g6 {[%clk 0:01:59]} 18. Qxe6 {[%clk
0:01:34.8]} 18... dxe6 {[%clk 0:01:57.1]} 19. Kc2 {[%clk 0:01:29]} 19... Bb7
{[%clk 0:01:55.9]} 20. Be4 {[%clk 0:01:28.1]} 20... Bc6 {[%clk 0:01:47.7]} 21.
Rd1 {[%clk 0:01:27.3]} 21... Kg7 {[%clk 0:01:46.3]} 22. b4 {[%clk 0:01:19.9]}
22... cxb4 {[%clk 0:01:43.8]} 23. axb4 {[%clk 0:01:20.8]} 23... f5 {[%clk
0:01:44.1]} 24. Bxc6 {[%clk 0:01:17.3]} 24... Nxc6 {[%clk 0:01:45]} 25. Kb3
{[%clk 0:01:17.7]} 25... Kf6 {[%clk 0:01:42.9]} 26. Rxd8 {[%clk 0:01:09.6]}
26... Rxd8 {[%clk 0:01:43.8]} 27. Rd1 {[%clk 0:01:09.9]} 27... Rxd1 {[%clk
0:01:39.9]} 28. Nxd1 {[%clk 0:01:10.8]} 28... g5 {[%clk 0:01:32.6]} 29. Ka4
{[%clk 0:00:55.3]} 29... Ke7 {[%clk 0:01:11.9]} 30. Kb5 {[%clk 0:00:55.2]} 30...
Kd6 {[%clk 0:01:11.1]} 31. Nb2 {[%clk 0:00:53.1]} 31... a5 {[%clk 0:00:59]} 32.
c5+ {[%clk 0:00:51.1]} 32... bxc5 {[%clk 0:00:58.4]} 33. bxc5+ {[%clk 0:00:52]}
33... Kd5 {[%clk 0:00:43.8]} 34. Nc4 {[%clk 0:00:48.5]} 34... Na7+ {[%clk
0:00:35.9]} 35. Kxa5 {[%clk 0:00:47.4]} 35... Kxc4 {[%clk 0:00:35.3]} 36. Kb6
{[%clk 0:00:43.4]} 36... Nc8+ {[%clk 0:00:34.8]} 37. Kc6 {[%clk 0:00:43.5]}
37... e5 {[%clk 0:00:28.4]} 38. Kd7 {[%clk 0:00:27.5]} 38... Kxc5 {[%clk
0:00:28.4]} 39. Kxc8 {[%clk 0:00:28]} 39... Kc4 {[%clk 0:00:28.1]} 40. Kd7
{[%clk 0:00:28.3]} 40... Kd3 {[%clk 0:00:28.5]} 41. Ke6 {[%clk 0:00:28.7]} 41...
e4 {[%clk 0:00:04]} 42. Kxf5 {[%clk 0:00:27.5]} 42... exf3 {[%clk 0:00:04]} 43.
gxf3 {[%clk 0:00:28]} 43... Kxe3 {[%clk 0:00:03.8]} 44. Kg4 {[%clk 0:00:25.7]}
44... h6 {[%clk 0:00:03.1]} 45. Kg3 {[%clk 0:00:20.4]} 45... Ke2 {[%clk
0:00:01.5]} 46. h3 {[%clk 0:00:19.2]} 46... Ke3 {[%clk 0:00:01.7]} 47. Kg4
{[%clk 0:00:18.6]} 47... Kf2 {[%clk 0:00:01.8]} 48. h4 {[%clk 0:00:18.8]} 1-0

[Event "Late-Titled-Tuesday-Blitz-January-16-2024"]
[Site "Chess.com"]
[Date "2024.01.16"]
[Round "1"]
[White "Byniolus"]
[Black "giomar27"]
[Result "1-0"]
[WhiteElo "2747"]
[BlackElo "2418"]
[TimeControl "180+1"]
[EndTime "14:07:46 PST"]
[Termination "Byniolus won by resignation"]

1. d4 {[%clk 0:03:00.9]} 1... g6 {[%clk 0:02:57.5]} 2. Nf3 {[%clk 0:03:01]} 2...
Bg7 {[%clk 0:02:57.5]} 3. Bf4 {[%clk 0:03:01.4]} 3... d6 {[%clk 0:02:54]} 4. e3
{[%clk 0:03:01.7]} 4... b6 {[%clk 0:02:49.6]} 5. h3 {[%clk 0:03:01.7]} 5... Bb7
{[%clk 0:02:47.4]} 6. Be2 {[%clk 0:03:02.1]} 6... Nd7 {[%clk 0:02:47.2]} 7. Bh2
{[%clk 0:03:00.6]} 7... e6 {[%clk 0:02:46.6]} 8. a4 {[%clk 0:03:00.2]} 8... a6
{[%clk 0:02:46.3]} 9. O-O {[%clk 0:02:59.1]} 9... Ne7 {[%clk 0:02:46.5]} 10. c4
{[%clk 0:02:52.5]} 10... O-O {[%clk 0:02:44.9]} 11. Nc3 {[%clk 0:02:53.1]} 11...
h6 {[%clk 0:02:38]} 12. b4 {[%clk 0:02:42.8]} 12... f5 {[%clk 0:02:37.1]} 13.
Qb3 {[%clk 0:02:39]} 13... Kh8 {[%clk 0:02:32.2]} 14. c5 {[%clk 0:02:35.5]}
14... e5 {[%clk 0:02:15]} 15. cxd6 {[%clk 0:02:28.2]} 15... cxd6 {[%clk
0:02:15.1]} 16. Rac1 {[%clk 0:02:23.3]} 16... Nc6 {[%clk 0:02:03]} 17. dxe5
{[%clk 0:02:13.3]} 17... dxe5 {[%clk 0:01:56.5]} 18. Rfd1 {[%clk 0:02:13.2]}
18... Qe8 {[%clk 0:01:44.7]} 19. Nd5 {[%clk 0:02:01.2]} 19... Rc8 {[%clk
0:01:42.1]} 20. Qa3 {[%clk 0:01:23]} 20... e4 {[%clk 0:01:37]} 21. Nd2 {[%clk
0:01:14.8]} 21... Nd4 {[%clk 0:00:52.1]} 22. exd4 {[%clk 0:01:14.7]} 22... Bxd5
{[%clk 0:00:51.6]} 23. Nc4 {[%clk 0:01:07.1]} 23... Qe6 {[%clk 0:00:43]} 24. Ne5
{[%clk 0:00:52.3]} 24... Nxe5 {[%clk 0:00:36]} 25. Bxe5 {[%clk 0:00:53.2]} 25...
Bxe5 {[%clk 0:00:33.6]} 26. dxe5 {[%clk 0:00:54.1]} 26... Qxe5 {[%clk
0:00:32.4]} 27. Bxa6 {[%clk 0:00:52]} 27... Rcd8 {[%clk 0:00:29.4]} 28. Qc3
{[%clk 0:00:44.4]} 28... Qxc3 {[%clk 0:00:18]} 29. Rxc3 {[%clk 0:00:45.3]} 29...
f4 {[%clk 0:00:18.6]} 30. Bb5 {[%clk 0:00:30]} 30... Rf6 {[%clk 0:00:15.4]} 31.
Rdc1 {[%clk 0:00:16.2]} 31... Rfd6 {[%clk 0:00:15.1]} 32. Rc8 {[%clk 0:00:13.4]}
32... Kg7 {[%clk 0:00:13.4]} 33. Rxd8 {[%clk 0:00:07.9]} 33... Rxd8 {[%clk
0:00:14.3]} 34. a5 {[%clk 0:00:06.9]} 34... bxa5 {[%clk 0:00:12]} 35. bxa5
{[%clk 0:00:07.8]} 35... e3 {[%clk 0:00:10.6]} 36. fxe3 {[%clk 0:00:07.3]} 36...
fxe3 {[%clk 0:00:11.5]} 37. Re1 {[%clk 0:00:04.6]} 37... Rb8 {[%clk 0:00:09.5]}
38. Bf1 {[%clk 0:00:04.6]} 38... Ra8 {[%clk 0:00:03.6]} 39. a6 {[%clk
0:00:04.6]} 39... Re8 {[%clk 0:00:02.9]} 40. Be2 {[%clk 0:00:03.2]} 40... Kf6
{[%clk 0:00:02.9]} 41. Rd1 {[%clk 0:00:03.1]} 41... Ke5 {[%clk 0:00:03.2]} 42.
a7 {[%clk 0:00:03.8]} 42... Bb7 {[%clk 0:00:02.6]} 43. Rb1 {[%clk 0:00:04]}
43... Ba8 {[%clk 0:00:02.1]} 44. Rb8 {[%clk 0:00:04]} 44... Bc6 {[%clk
0:00:02.1]} 45. Rxe8+ {[%clk 0:00:04.1]} 1-0

[Event "Late-Titled-Tuesday-Blitz-January-16-2024"]
[Site "Chess.com"]
[Date "2024.01.16"]
[Round "1"]
[White "Bala-Afiada"]
[Black "MrChessSponge"]
[Result "0-1"]
[WhiteElo "2028"]
[BlackElo "2543"]
[TimeControl "180+1"]
[EndTime "14:07:47 PST"]
[Termination "MrChessSponge won by checkmate"]

1. d4 {[%clk 0:03:00]} 1... Nf6 {[%clk 0:02:59.1]} 2. c4 {[%clk 0:03:00.1]} 2...
e6 {[%clk 0:02:58.1]} 3. g3 {[%clk 0:03:00.3]} 3... c5 {[%clk 0:02:57.3]} 4. d5
{[%clk 0:03:00.1]} 4... exd5 {[%clk 0:02:58.2]} 5. cxd5 {[%clk 0:03:00.9]} 5...
d6 {[%clk 0:02:58.6]} 6. Nc3 {[%clk 0:03:01.5]} 6... g6 {[%clk 0:02:59.1]} 7.
Bg2 {[%clk 0:03:02.1]} 7... Bg7 {[%clk 0:02:59.6]} 8. Nf3 {[%clk 0:03:02.8]}
8... O-O {[%clk 0:02:59.9]} 9. O-O {[%clk 0:03:02.8]} 9... Re8 {[%clk
0:03:00.5]} 10. Nd2 {[%clk 0:03:02.7]} 10... a6 {[%clk 0:02:59.7]} 11. a4 {[%clk
0:03:02.7]} 11... Nbd7 {[%clk 0:02:58.2]} 12. Nc4 {[%clk 0:02:57.5]} 12... Nb6
{[%clk 0:02:55.9]} 13. Qb3 {[%clk 0:02:47.2]} 13... Nxc4 {[%clk 0:02:55.2]} 14.
Qxc4 {[%clk 0:02:47.7]} 14... b5 {[%clk 0:02:44.4]} 15. Qh4 {[%clk 0:02:24.4]}
15... b4 {[%clk 0:02:42.9]} 16. Ne4 {[%clk 0:02:12.9]} 16... Nxe4 {[%clk
0:02:37.1]} 17. Qxd8 {[%clk 0:02:12.5]} 17... Rxd8 {[%clk 0:02:37]} 18. Bxe4
{[%clk 0:02:12.3]} 18... Bg4 {[%clk 0:02:29.2]} 19. f3 {[%clk 0:01:59.9]} 19...
Re8 {[%clk 0:02:18.5]} 20. Bd3 {[%clk 0:01:43]} 20... Bd7 {[%clk 0:02:12.7]} 21.
e4 {[%clk 0:01:27.6]} 21... a5 {[%clk 0:02:09]} 22. Ra2 {[%clk 0:01:12.4]} 22...
f5 {[%clk 0:02:06.9]} 23. Re1 {[%clk 0:01:10.1]} 23... fxe4 {[%clk 0:02:05.1]}
24. fxe4 {[%clk 0:01:08]} 24... Bd4+ {[%clk 0:02:03.8]} 25. Be3 {[%clk
0:01:03.7]} 25... Be5 {[%clk 0:02:02.3]} 26. b3 {[%clk 0:01:00.7]} 26... Rf8
{[%clk 0:01:50.4]} 27. Rf2 {[%clk 0:00:58.3]} 27... Rxf2 {[%clk 0:01:46.1]} 28.
Bxf2 {[%clk 0:00:58.7]} 28... Rf8 {[%clk 0:01:45.6]} 29. Rf1 {[%clk 0:00:58.5]}
29... Bh3 {[%clk 0:01:44.6]} 30. Re1 {[%clk 0:00:52.2]} 30... Kg7 {[%clk
0:01:39.2]} 31. Bf1 {[%clk 0:00:51.5]} 31... Bg4 {[%clk 0:01:32.1]} 32. Be2
{[%clk 0:00:50.4]} 32... Bh3 {[%clk 0:01:20.6]} 33. Bf1 {[%clk 0:00:40.1]} 33...
Bxf1 {[%clk 0:01:17.9]} 34. Rxf1 {[%clk 0:00:38.5]} 34... Rf3 {[%clk 0:01:16.6]}
35. Rb1 {[%clk 0:00:30.6]} 35... Rc3 {[%clk 0:01:12.6]} 36. Kg2 {[%clk
0:00:21.2]} 36... g5 {[%clk 0:01:10.4]} 37. h3 {[%clk 0:00:18.2]} 37... Kg6
{[%clk 0:01:09.2]} 38. g4 {[%clk 0:00:10.3]} 38... h5 {[%clk 0:01:08.6]} 39.
gxh5+ {[%clk 0:00:10.3]} 39... Kxh5 {[%clk 0:01:07.9]} 40. Be1 {[%clk
0:00:06.9]} 40... Re3 {[%clk 0:01:05.2]} 41. Bf2 {[%clk 0:00:06.7]} 41... Rxe4
{[%clk 0:01:04.5]} 42. Kf3 {[%clk 0:00:06.4]} 42... Rf4+ {[%clk 0:01:01.9]} 43.
Ke2 {[%clk 0:00:06.5]} 43... g4 {[%clk 0:00:58.9]} 44. Be3 {[%clk 0:00:07]}
44... Rf3 {[%clk 0:00:51.2]} 45. hxg4+ {[%clk 0:00:07.3]} 45... Kxg4 {[%clk
0:00:50.9]} 46. Rg1+ {[%clk 0:00:08]} 46... Rg3 {[%clk 0:00:49.5]} 47. Rf1
{[%clk 0:00:07.4]} 47... Rg2+ {[%clk 0:00:42.7]} 48. Kd3 {[%clk 0:00:07.2]}
48... Rb2 {[%clk 0:00:41.6]} 49. Kc4 {[%clk 0:00:05.2]} 49... Rc2+ {[%clk
0:00:38.1]} 50. Kb5 {[%clk 0:00:04.9]} 50... Rc3 {[%clk 0:00:38.5]} 51. Rg1+
{[%clk 0:00:04.4]} 51... Kf3 {[%clk 0:00:36.7]} 52. Bd2 {[%clk 0:00:03.9]} 52...
Rd3 {[%clk 0:00:34]} 53. Bc1 {[%clk 0:00:03.1]} 53... Rxd5 {[%clk 0:00:32.9]}
54. Rf1+ {[%clk 0:00:03.5]} 54... Ke2 {[%clk 0:00:32.3]} 55. Rf7 {[%clk
0:00:03.5]} 55... c4+ {[%clk 0:00:29.3]} 56. Kxc4 {[%clk 0:00:03.4]} 56... Rc5#
{[%clk 0:00:29.8]} 0-1

[Event "Late-Titled-Tuesday-Blitz-January-16-2024"]
[Site "Chess.com"]
[Date "2024.01.16"]
[Round "1"]
[White "IranianCheetah"]
[Black "Ekko_li"]
[Result "0-1"]
[WhiteElo "2379"]
[BlackElo "2701"]
[TimeControl "180+1"]
[EndTime "14:07:51 PST"]
[Termination "Ekko_li won on time"]

1. e4 {[%clk 0:03:00.9]} 1... c5 {[%clk 0:02:55.7]} 2. Nf3 {[%clk 0:02:59.2]}
2... Nc6 {[%clk 0:02:55.2]} 3. d4 {[%clk 0:02:59.6]} 3... cxd4 {[%clk
0:02:56.1]} 4. Nxd4 {[%clk 0:03:00.5]} 4... g6 {[%clk 0:02:56.3]} 5. c4 {[%clk
0:02:57.6]} 5... Nf6 {[%clk 0:02:55.7]} 6. Nc3 {[%clk 0:02:57.5]} 6... Bg7
{[%clk 0:02:53.1]} 7. Be3 {[%clk 0:02:55.8]} 7... d6 {[%clk 0:02:51.8]} 8. Be2
{[%clk 0:02:56]} 8... O-O {[%clk 0:02:50.5]} 9. O-O {[%clk 0:02:56]} 9... Bd7
{[%clk 0:02:50.7]} 10. Rc1 {[%clk 0:02:51.8]} 10... Nxd4 {[%clk 0:02:47.5]} 11.
Bxd4 {[%clk 0:02:50.5]} 11... Bc6 {[%clk 0:02:46.5]} 12. f3 {[%clk 0:02:46.5]}
12... Nd7 {[%clk 0:02:42.9]} 13. Be3 {[%clk 0:02:43.5]} 13... a5 {[%clk
0:02:40.2]} 14. b3 {[%clk 0:02:42.7]} 14... Nc5 {[%clk 0:02:31.6]} 15. Qd2
{[%clk 0:02:42.8]} 15... b6 {[%clk 0:02:16.6]} 16. Rc2 {[%clk 0:02:40.2]} 16...
Qc7 {[%clk 0:02:07.3]} 17. Nb5 {[%clk 0:02:32.7]} 17... Bxb5 {[%clk 0:01:56.9]}
18. cxb5 {[%clk 0:02:33.6]} 18... Rac8 {[%clk 0:01:53]} 19. Rfc1 {[%clk
0:02:28.6]} 19... Qb7 {[%clk 0:01:48.1]} 20. Bc4 {[%clk 0:02:26.1]} 20... Rcd8
{[%clk 0:01:36]} 21. Bd5 {[%clk 0:02:19.4]} 21... Qb8 {[%clk 0:01:33]} 22. Bc6
{[%clk 0:02:01.6]} 22... Qc8 {[%clk 0:01:28.6]} 23. b4 {[%clk 0:01:54.8]} 23...
axb4 {[%clk 0:01:27.6]} 24. Qxb4 {[%clk 0:01:55.7]} 24... f5 {[%clk 0:01:26.3]}
25. a4 {[%clk 0:01:33]} 25... fxe4 {[%clk 0:01:25.8]} 26. Bxe4 {[%clk
0:01:19.8]} 26... Qb8 {[%clk 0:00:57.8]} 27. Bc6 {[%clk 0:00:52.8]} 27... Kh8
{[%clk 0:00:45.2]} 28. Bd4 {[%clk 0:00:44.8]} 28... Bxd4+ {[%clk 0:00:43.7]} 29.
Qxd4+ {[%clk 0:00:44.5]} 29... e5 {[%clk 0:00:44.3]} 30. Qc4 {[%clk 0:00:38.8]}
30... Rf4 {[%clk 0:00:42.1]} 31. Qe2 {[%clk 0:00:21.7]} 31... Rxa4 {[%clk
0:00:39.6]} 32. Rc4 {[%clk 0:00:20.6]} 32... Qa7 {[%clk 0:00:37.4]} 33. h4
{[%clk 0:00:17.5]} 33... Rf8 {[%clk 0:00:28.1]} 34. h5 {[%clk 0:00:16.2]} 34...
gxh5 {[%clk 0:00:25.7]} 35. Qd2 {[%clk 0:00:11.3]} 35... Rxc4 {[%clk 0:00:19.6]}
36. Rxc4 {[%clk 0:00:12.2]} 36... Qg7 {[%clk 0:00:19.1]} 37. Qxd6 {[%clk
0:00:11.4]} 37... e4 {[%clk 0:00:15.7]} 38. Bxe4 {[%clk 0:00:09.3]} 38... Rg8
{[%clk 0:00:12]} 39. Rc2 {[%clk 0:00:05.6]} 39... Qa1+ {[%clk 0:00:11.2]} 40.
Kh2 {[%clk 0:00:05.5]} 40... Qg7 {[%clk 0:00:10.8]} 41. Bd5 {[%clk 0:00:03.9]}
41... Rf8 {[%clk 0:00:09.8]} 42. Bc4 {[%clk 0:00:02.7]} 42... Nb7 {[%clk
0:00:08.7]} 43. Re2 {[%clk 0:00:02.8]} 43... Nxd6 {[%clk 0:00:08.6]} 0-1

[Event "Late-Titled-Tuesday-Blitz-January-16-2024"]
[Site "Chess.com"]
[Date "2024.01.16"]
[Round "1"]
[White "PawnEatingZombie"]
[Black "Mackster23"]
[Result "0-1"]
[WhiteElo "2158"]
[BlackElo "2562"]
[TimeControl "180+1"]
[EndTime "14:07:51 PST"]
[Termination "Mackster23 won by resignation"]

1. e4 {[%clk 0:03:00.9]} 1... c5 {[%clk 0:02:54.2]} 2. c3 {[%clk 0:03:01.1]}
2... e6 {[%clk 0:02:48.3]} 3. d4 {[%clk 0:03:00.1]} 3... d5 {[%clk 0:02:47.7]}
4. exd5 {[%clk 0:03:00.2]} 4... exd5 {[%clk 0:02:47.7]} 5. Bb5+ {[%clk
0:03:00.5]} 5... Nc6 {[%clk 0:02:46.4]} 6. Nf3 {[%clk 0:02:58.5]} 6... Nf6
{[%clk 0:02:38.5]} 7. O-O {[%clk 0:02:52.4]} 7... cxd4 {[%clk 0:02:26.9]} 8.
Nxd4 {[%clk 0:02:50.9]} 8... Bd7 {[%clk 0:02:27.3]} 9. Re1+ {[%clk 0:02:47.5]}
9... Be7 {[%clk 0:02:27.4]} 10. Qe2 {[%clk 0:01:58.1]} 10... Nxd4 {[%clk
0:01:42.2]} 11. cxd4 {[%clk 0:01:56.6]} 11... Bxb5 {[%clk 0:01:28.3]} 12. Qxb5+
{[%clk 0:01:55.4]} 12... Qd7 {[%clk 0:01:29.1]} 13. Qxd7+ {[%clk 0:01:54.2]}
13... Kxd7 {[%clk 0:01:26.8]} 14. Nc3 {[%clk 0:01:55.1]} 14... Bb4 {[%clk
0:01:22.5]} 15. Be3 {[%clk 0:01:45.5]} 15... Bxc3 {[%clk 0:01:21.3]} 16. bxc3
{[%clk 0:01:45.9]} 16... Rhc8 {[%clk 0:01:20.9]} 17. Rec1 {[%clk 0:01:44.5]}
17... Rc4 {[%clk 0:01:20.5]} 18. Kf1 {[%clk 0:01:44.8]} 18... Ne4 {[%clk
0:01:17]} 19. Rab1 {[%clk 0:01:36.9]} 19... b6 {[%clk 0:01:16.9]} 20. Rb3 {[%clk
0:01:23.8]} 20... Rac8 {[%clk 0:01:15.5]} 21. Ra3 {[%clk 0:01:23.7]} 21... a5
{[%clk 0:01:11.7]} 22. Rb3 {[%clk 0:01:22.7]} 22... R8c6 {[%clk 0:01:11.6]} 23.
Ke1 {[%clk 0:01:17.7]} 23... Nxc3 {[%clk 0:01:10.3]} 24. Rc2 {[%clk 0:01:03.5]}
24... b5 {[%clk 0:00:49.1]} 25. Rcxc3 {[%clk 0:00:58.9]} 25... Rxc3 {[%clk
0:00:48.8]} 26. Rxb5 {[%clk 0:00:59.8]} 26... Ra3 {[%clk 0:00:44.9]} 27. Rxd5+
{[%clk 0:00:59.1]} 27... Rd6 {[%clk 0:00:35.9]} 28. Rb5 {[%clk 0:00:55.5]} 28...
Rxa2 {[%clk 0:00:33.8]} 29. g3 {[%clk 0:00:52.8]} 29... a4 {[%clk 0:00:29.7]}
30. Ra5 {[%clk 0:00:52.2]} 30... Rb6 {[%clk 0:00:28]} 31. Kf1 {[%clk 0:00:52.1]}
31... Rb3 {[%clk 0:00:27.2]} 32. Ra7+ {[%clk 0:00:46.2]} 32... Ke6 {[%clk
0:00:27]} 33. Ra6+ {[%clk 0:00:46.2]} 33... Kf5 {[%clk 0:00:26]} 34. d5 {[%clk
0:00:41.8]} 34... Rd3 {[%clk 0:00:21.4]} 35. d6 {[%clk 0:00:40.5]} 35... Ke6
{[%clk 0:00:20.5]} 36. Bf4 {[%clk 0:00:36.5]} 36... f6 {[%clk 0:00:19.1]} 37. h4
{[%clk 0:00:36.1]} 37... Rd5 {[%clk 0:00:15]} 38. g4 {[%clk 0:00:31.8]} 38...
Rd4 {[%clk 0:00:11.8]} 39. Bg3 {[%clk 0:00:28.7]} 39... Rad2 {[%clk 0:00:07.4]}
40. Ra7 {[%clk 0:00:27.8]} 40... R2d3 {[%clk 0:00:04.5]} 41. Re7+ {[%clk
0:00:24]} 41... Kd5 {[%clk 0:00:05.1]} 42. Rxg7 {[%clk 0:00:23.7]} 42... Kc4
{[%clk 0:00:04.8]} 43. Rxh7 {[%clk 0:00:23.1]} 43... a3 {[%clk 0:00:04.8]} 44.
Ra7 {[%clk 0:00:23.1]} 44... Kb3 {[%clk 0:00:05]} 45. h5 {[%clk 0:00:19.6]}
45... a2 {[%clk 0:00:05]} 46. Rxa2 {[%clk 0:00:19.1]} 46... Kxa2 {[%clk
0:00:05]} 47. h6 {[%clk 0:00:20]} 47... Rxd6 {[%clk 0:00:02.4]} 48. Bxd6 {[%clk
0:00:19.4]} 48... Rxd6 {[%clk 0:00:03.3]} 49. f4 {[%clk 0:00:19.1]} 49... Rd4
{[%clk 0:00:03]} 50. Kg2 {[%clk 0:00:18]} 50... Rxf4 {[%clk 0:00:03]} 51. Kg3
{[%clk 0:00:18.6]} 51... Ra4 {[%clk 0:00:02.7]} 52. Kh4 {[%clk 0:00:19.2]} 52...
Ra5 {[%clk 0:00:02.6]} 53. h7 {[%clk 0:00:18.7]} 53... Ra7 {[%clk 0:00:02.9]}
54. Kh5 {[%clk 0:00:19.3]} 54... Rxh7+ {[%clk 0:00:03.1]} 55. Kg6 {[%clk
0:00:18]} 55... Rh4 {[%clk 0:00:03.7]} 56. Kf5 {[%clk 0:00:17.3]} 56... Kb3
{[%clk 0:00:04.1]} 0-1